{"text_format":"3","workbook":"xlsx","n_sheets":3,"sheets":["Ultimate Body Cleanse Calendar","Sheet1","Sheet2"],"not_rendered":{"defined_names":2},"read":"whole","date_system":"1900"}

{"sheet":"Ultimate Body Cleanse Calendar","index":0,"n_rows":67,"n_cols":16,"rows_kept":67,"merged":[[1,2,1,5],[1,10,1,13],[2,1,2,7],[2,9,2,15],[19,1,19,7],[19,9,19,15],[29,1,29,7],[29,9,29,15],[38,1,38,7],[38,9,38,15],[39,1,39,7],[39,9,39,15],[40,1,40,7],[40,9,40,15],[41,1,41,7],[41,9,41,15],[42,1,42,7],[42,9,42,15],[43,1,43,7],[43,9,43,15],[44,1,44,7],[44,9,44,15],[45,1,45,7],[45,9,45,15],[46,1,46,7],[46,9,46,15],[48,1,48,7],[48,9,48,15],[49,1,49,7],[49,9,49,15],[50,1,50,7],[50,9,50,15],[51,1,51,7],[51,9,51,15],[52,1,52,7],[52,9,52,15],[53,1,53,7],[53,9,53,15],[54,1,54,7],[54,9,54,15],[55,1,55,7],[55,9,55,15],[56,1,56,7],[56,9,56,15],[58,1,58,7],[58,9,58,15],[59,1,59,7],[59,9,59,15],[60,1,60,7],[60,9,60,15],[61,1,61,7],[61,9,61,15],[62,1,62,7],[62,9,62,15],[63,1,63,7],[63,9,63,15],[64,1,64,7],[64,9,64,15],[65,1,65,7],[65,9,65,15],[66,1,66,7],[66,9,66,15]]}
[]
[null,null,"Enter Date (MM/DD/YY) of Full Moon:",{"$nulls":3},"2026-01-03",{"$nulls":3},"Enter Date (MM/DD/YY) of Full Moon:",{"$nulls":3},"2026-02-01"]
[null,"7 WEEK ULTIMATE BODY CLEANSE",{"$nulls":7},"7 WEEK ULTIMATE BODY CLEANSE"]
[null,{"$f":"B7","v":"2025-12-29"},"2025-12-30","2025-12-31","2026-01-01","2026-01-02",{"$f":"G7","v":"2026-01-03"},{"$f":"H7","v":"2026-01-04"},null,{"$f":"J7","v":"2026-01-27"},"2026-01-28","2026-01-29","2026-01-30","2026-01-31",{"$f":"O7","v":"2026-02-01"},{"$f":"P7","v":"2026-02-02"}]
[null,{"$f":"C5-1","v":"2025-12-22"},"2025-12-23","2025-12-24","2025-12-25","2025-12-26","2025-12-27",{"$f":"B7-1","v":"2025-12-28"},null,{"$f":"K5-1","v":"2026-01-20"},"2026-01-21","2026-01-22","2026-01-23","2026-01-24","2026-01-25",{"$f":"J7-1","v":"2026-01-26"}]
[null,"Detox - 5 Shilajit - 2","Detox - 5 Shilajit - 2","Detox - 5 Shilajit - 2","Detox - 5 Shilajit - 2","Detox - 5 Shilajit - 2","Detox - 5 Shilajit - 2","Detox - 5 Shilajit - 2",null,"Detox - 5 Shilajit - 2","Detox - 5 Shilajit - 2","Detox - 5 Shilajit - 2","Detox - 5 Shilajit - 2","Detox - 5 Shilajit - 2","Detox - 5 Shilajit - 2","Detox - 5 Shilajit - 2"]
[null,"2025-12-29","2025-12-30","2025-12-31","2026-01-01",{"$f":"G7-1","v":"2026-01-02"},{"$f":"G2","v":"2026-01-03"},{"$f":"G7+1","v":"2026-01-04"},null,{"$f":"K7-1","v":"2026-01-27"},"2026-01-28","2026-01-29","2026-01-30",{"$f":"O7-1","v":"2026-01-31"},{"$f":"O2","v":"2026-02-01"},{"$f":"O7+1","v":"2026-02-02"}]
[null,"Detox - 5 Shilajit - 2","Detox - 5 Shilajit - 2","Parasite - 3 Shilajit - 2","Parasite - 3 Shilajit - 2","Parasite - 3 Shilajit - 2","FULL MOON Parasite - 3 Shilajit - 2","Parasite - 3 Shilajit - 2",null,"Detox - 5 Shilajit - 2","Detox - 5 Shilajit - 2","Parasite - 3 Shilajit - 2","Parasite - 3 Shilajit - 2","Parasite - 3 Shilajit - 2","FULL MOON Parasite - 3 Shilajit - 2","Parasite - 3 Shilajit - 2"]
[null,{"$f":"H7+1","v":"2026-01-05"},{"$f":"B9+1","v":"2026-01-06"},{"$f":"C9+1","v":"2026-01-07"},"2026-01-08","2026-01-09","2026-01-10","2026-01-11",null,{"$f":"P7+1","v":"2026-02-03"},{"$f":"J9+1","v":"2026-02-04"},{"$f":"K9+1","v":"2026-02-05"},"2026-02-06","2026-02-07","2026-02-08","2026-02-09"]
[null,"Parasite - 3 Shilajit - 2","Parasite - 3 Shilajit - 2","Parasite - 3 Shilajit - 2","Parasite - 3 Shilajit - 2","Parasite - 3 Shilajit - 2","Parasite - 2 Shilajit - 2","Parasite - 2 Shilajit - 1",null,"Parasite - 3 Shilajit - 2","Parasite - 3 Shilajit - 2","Parasite - 3 Shilajit - 2","Parasite - 3 Shilajit - 2","Parasite - 3 Shilajit - 2","Parasite - 2 Shilajit - 2","Parasite - 2 Shilajit - 1"]
[null,{"$f":"H9+1","v":"2026-01-12"},{"$f":"B11+1","v":"2026-01-13"},"2026-01-14","2026-01-15","2026-01-16","2026-01-17","2026-01-18",null,{"$f":"P9+1","v":"2026-02-10"},{"$f":"J11+1","v":"2026-02-11"},{"$f":"K11+1","v":"2026-02-12"},"2026-02-13","2026-02-14","2026-02-15","2026-02-16"]
[null,"Parasite - 2 Shilajit - 1","Parasite - 2 Shilajit - 1","Parasite - 2 Shilajit - 1","Parasite - 2 Shilajit - 2","Parasite - 2 Shilajit - 1","Parasite - 2 Shilajit - 1","Parasite - 2 Shilajit - 1",null,"Parasite - 2 Shilajit - 1","Parasite - 2 Shilajit - 1","Parasite - 2 Shilajit - 1","Parasite - 2 Shilajit - 2","Parasite - 2 Shilajit - 1","Parasite - 2 Shilajit - 1","Parasite - 2 Shilajit - 1"]
[null,{"$f":"H11+1","v":"2026-01-19"},{"$f":"B13+1","v":"2026-01-20"},"2026-01-21","2026-01-22","2026-01-23","2026-01-24","2026-01-25",null,{"$f":"P11+1","v":"2026-02-17"},{"$f":"J13+1","v":"2026-02-18"},{"$f":"K13+1","v":"2026-02-19"},"2026-02-20","2026-02-21","2026-02-22","2026-02-23"]
[null,"Parasite - 2 Shilajit - 1","Parasite - 2 Shilajit - 2","Detox - 5 Parasite - 2 Shilajit - 2","Detox - 5 Parasite - 2 Shilajit - 2","Detox - 5 Parasite - 2 Shilajit - 2","Detox - 5 Parasite - 2 Shilajit - 2","Detox - 5 Parasite - 2 Shilajit - 2",null,"Parasite - 2 Shilajit - 1","Parasite - 2 Shilajit - 2","Detox - 5 Parasite - 2 Shilajit - 2","Detox - 5 Parasite - 2 Shilajit - 2","Detox - 5 Parasite - 2 Shilajit - 2","Detox - 5 Parasite - 2 Shilajit - 2","Detox - 5 Parasite - 2 Shilajit - 2"]
[null,{"$f":"H13+1","v":"2026-01-26"},{"$f":"B15+1","v":"2026-01-27"},"2026-01-28","2026-01-29","2026-01-30","2026-01-31","2026-02-01",null,{"$f":"P13+1","v":"2026-02-24"},{"$f":"J15+1","v":"2026-02-25"},{"$f":"K15+1","v":"2026-02-26"},"2026-02-27","2026-02-28","2026-03-01","2026-03-02"]
[null,"Detox - 5 Parasite - 2 Shilajit - 2","Detox - 5 Parasite - 2 Shilajit - 2","Detox - 5 Parasite - 2 Shilajit - 2","Detox - 5 Parasite - 2 Shilajit - 2","Parasite - 3 Shilajit - 2","Parasite - 3 Shilajit - 2","Parasite - 3 Shilajit - 2",null,"Detox - 5 Parasite - 2 Shilajit - 2","Detox - 5 Parasite - 2 Shilajit - 2","Detox - 5 Parasite - 2 Shilajit - 2","Detox - 5 Parasite - 2 Shilajit - 2","Parasite - 3 Shilajit - 2","Parasite - 3 Shilajit - 2","Parasite - 3 Shilajit - 2"]
[null,{"$f":"H15+1","v":"2026-02-02"},{"$f":"B17+1","v":"2026-02-03"},"2026-02-04","2026-02-05","2026-02-06","2026-02-07","2026-02-08",null,{"$f":"P15+1","v":"2026-03-03"},{"$f":"J17+1","v":"2026-03-04"},{"$f":"K17+1","v":"2026-03-05"},"2026-03-06","2026-03-07","2026-03-08","2026-03-09"]
[null,"FULL MOON Parasite - 3 Shilajit - 2","Parasite - 3 Shilajit - 2","Parasite - 3 Shilajit - 2","Parasite - 3 Shilajit - 2","Parasite - 3 Shilajit - 2","Parasite - 3 Shilajit - 2","Parasite - 3 Shilajit - 2",null,"FULL MOON Parasite - 3 Shilajit - 2","Parasite - 3 Shilajit - 2","Parasite - 3 Shilajit - 2","Parasite - 3 Shilajit - 2","Parasite - 3 Shilajit - 2","Parasite - 3 Shilajit - 2","Parasite - 3 Shilajit - 2"]
[]
[null,"7 WEEK ULTIMATE BODY CLEANSE",{"$nulls":7},"7 WEEK ULTIMATE BODY CLEANSE"]
[]
[null,"Detox - 5 Shilajit - 2","Detox - 5 Shilajit - 2","Detox - 5 Shilajit - 2","Detox - 5 Shilajit - 2","Detox - 5 Shilajit - 2","Detox - 5 Shilajit - 2","Detox - 5 Shilajit - 2",null,"Detox - 5 Shilajit - 2","Detox - 5 Shilajit - 2","Detox - 5 Shilajit - 2","Detox - 5 Shilajit - 2","Detox - 5 Shilajit - 2","Detox - 5 Shilajit - 2","Detox - 5 Shilajit - 2"]
[null,"Detox - 5 Shilajit - 2","Detox - 5 Shilajit - 2","Parasite - 3 Shilajit - 2","Parasite - 3 Shilajit - 2","Parasite - 3 Shilajit - 2","FULL MOON Parasite - 3 Shilajit - 2","Parasite - 3 Shilajit - 2",null,"Detox - 5 Shilajit - 2","Detox - 5 Shilajit - 2","Parasite - 3 Shilajit - 2","Parasite - 3 Shilajit - 2","Parasite - 3 Shilajit - 2","FULL MOON Parasite - 3 Shilajit - 2","Parasite - 3 Shilajit - 2"]
[null,"Parasite - 3 Shilajit - 2","Parasite - 3 Shilajit - 2","Parasite - 3 Shilajit - 2","Parasite - 3 Shilajit - 2","Parasite - 3 Shilajit - 2","Parasite - 2 Shilajit - 2","Parasite - 2 Shilajit - 1",null,"Parasite - 3 Shilajit - 2","Parasite - 3 Shilajit - 2","Parasite - 3 Shilajit - 2","Parasite - 3 Shilajit - 2","Parasite - 3 Shilajit - 2","Parasite - 2 Shilajit - 2","Parasite - 2 Shilajit - 1"]
[null,"Parasite - 2 Shilajit - 1","Parasite - 2 Shilajit - 1","Parasite - 2 Shilajit - 1","Parasite - 2 Shilajit - 2","Parasite - 2 Shilajit - 1","Parasite - 2 Shilajit - 1","Parasite - 2 Shilajit - 1",null,"Parasite - 2 Shilajit - 1","Parasite - 2 Shilajit - 1","Parasite - 2 Shilajit - 1","Parasite - 2 Shilajit - 2","Parasite - 2 Shilajit - 1","Parasite - 2 Shilajit - 1","Parasite - 2 Shilajit - 1"]
[null,"Parasite - 2 Shilajit - 1","Parasite - 2 Shilajit - 2","Detox - 5 Parasite - 2 Shilajit - 2","Detox - 5 Parasite - 2 Shilajit - 2","Detox - 5 Parasite - 2 Shilajit - 2","Detox - 5 Parasite - 2 Shilajit - 2","Detox - 5 Parasite - 2 Shilajit - 2",null,"Parasite - 2 Shilajit - 1","Parasite - 2 Shilajit - 2","Detox - 5 Parasite - 2 Shilajit - 2","Detox - 5 Parasite - 2 Shilajit - 2","Detox - 5 Parasite - 2 Shilajit - 2","Detox - 5 Parasite - 2 Shilajit - 2","Detox - 5 Parasite - 2 Shilajit - 2"]
[null,"Detox - 5 Parasite - 2 Shilajit - 2","Detox - 5 Parasite - 2 Shilajit - 2","Detox - 5 Parasite - 2 Shilajit - 2","Detox - 5 Parasite - 2 Shilajit - 2","Parasite - 3 Shilajit - 2","Parasite - 3 Shilajit - 2","Parasite - 3 Shilajit - 2",null,"Detox - 5 Parasite - 2 Shilajit - 2","Detox - 5 Parasite - 2 Shilajit - 2","Detox - 5 Parasite - 2 Shilajit - 2","Detox - 5 Parasite - 2 Shilajit - 2","Parasite - 3 Shilajit - 2","Parasite - 3 Shilajit - 2","Parasite - 3 Shilajit - 2"]
[null,"FULL MOON Parasite - 3 Shilajit - 2","Parasite - 3 Shilajit - 2","Parasite - 3 Shilajit - 2","Parasite - 3 Shilajit - 2","Parasite - 3 Shilajit - 2","Parasite - 3 Shilajit - 2","Parasite - 3 Shilajit - 2",null,"FULL MOON Parasite - 3 Shilajit - 2","Parasite - 3 Shilajit - 2","Parasite - 3 Shilajit - 2","Parasite - 3 Shilajit - 2","Parasite - 3 Shilajit - 2","Parasite - 3 Shilajit - 2","Parasite - 3 Shilajit - 2"]
[]
[null,"7 WEEK ULTIMATE BODY CLEANSE",{"$nulls":7},"7 WEEK ULTIMATE BODY CLEANSE"]
[]
[null,"Detox - 5 Shilajit - 2","Detox - 5 Shilajit - 2","Detox - 5 Shilajit - 2","Detox - 5 Shilajit - 2","Detox - 5 Shilajit - 2","Detox - 5 Shilajit - 2","Detox - 5 Shilajit - 2",null,"Detox - 5 Shilajit - 2","Detox - 5 Shilajit - 2","Detox - 5 Shilajit - 2","Detox - 5 Shilajit - 2","Detox - 5 Shilajit - 2","Detox - 5 Shilajit - 2","Detox - 5 Shilajit - 2"]
[null,"Detox - 5 Shilajit - 2","Detox - 5 Shilajit - 2","Parasite - 3 Shilajit - 2","Parasite - 3 Shilajit - 2","Parasite - 3 Shilajit - 2","FULL MOON Parasite - 3 Shilajit - 2","Parasite - 3 Shilajit - 2",null,"Detox - 5 Shilajit - 2","Detox - 5 Shilajit - 2","Parasite - 3 Shilajit - 2","Parasite - 3 Shilajit - 2","Parasite - 3 Shilajit - 2","FULL MOON Parasite - 3 Shilajit - 2","Parasite - 3 Shilajit - 2"]
[null,"Parasite - 3 Shilajit - 2","Parasite - 3 Shilajit - 2","Parasite - 3 Shilajit - 2","Parasite - 3 Shilajit - 2","Parasite - 3 Shilajit - 2","Parasite - 2 Shilajit - 2","Parasite - 2 Shilajit - 1",null,"Parasite - 3 Shilajit - 2","Parasite - 3 Shilajit - 2","Parasite - 3 Shilajit - 2","Parasite - 3 Shilajit - 2","Parasite - 3 Shilajit - 2","Parasite - 2 Shilajit - 2","Parasite - 2 Shilajit - 1"]
[null,"Parasite - 2 Shilajit - 1","Parasite - 2 Shilajit - 1","Parasite - 2 Shilajit - 1","Parasite - 2 Shilajit - 2","Parasite - 2 Shilajit - 1","Parasite - 2 Shilajit - 1","Parasite - 2 Shilajit - 1",null,"Parasite - 2 Shilajit - 1","Parasite - 2 Shilajit - 1","Parasite - 2 Shilajit - 1","Parasite - 2 Shilajit - 2","Parasite - 2 Shilajit - 1","Parasite - 2 Shilajit - 1","Parasite - 2 Shilajit - 1"]
[null,"Parasite - 2 Shilajit - 1","Parasite - 2 Shilajit - 2","Detox - 5 Parasite - 2 Shilajit - 2","Detox - 5 Parasite - 2 Shilajit - 2","Detox - 5 Parasite - 2 Shilajit - 2","Detox - 5 Parasite - 2 Shilajit - 2","Detox - 5 Parasite - 2 Shilajit - 2",null,"Parasite - 2 Shilajit - 1","Parasite - 2 Shilajit - 2","Detox - 5 Parasite - 2 Shilajit - 2","Detox - 5 Parasite - 2 Shilajit - 2","Detox - 5 Parasite - 2 Shilajit - 2","Detox - 5 Parasite - 2 Shilajit - 2","Detox - 5 Parasite - 2 Shilajit - 2"]
[null,"Detox - 5 Parasite - 2 Shilajit - 2","Detox - 5 Parasite - 2 Shilajit - 2","Detox - 5 Parasite - 2 Shilajit - 2","Detox - 5 Parasite - 2 Shilajit - 2","Parasite - 3 Shilajit - 2","Parasite - 3 Shilajit - 2","Parasite - 3 Shilajit - 2",null,"Detox - 5 Parasite - 2 Shilajit - 2","Detox - 5 Parasite - 2 Shilajit - 2","Detox - 5 Parasite - 2 Shilajit - 2","Detox - 5 Parasite - 2 Shilajit - 2","Parasite - 3 Shilajit - 2","Parasite - 3 Shilajit - 2","Parasite - 3 Shilajit - 2"]
[null,"FULL MOON Parasite - 3 Shilajit - 2","Parasite - 3 Shilajit - 2","Parasite - 3 Shilajit - 2","Parasite - 3 Shilajit - 2","Parasite - 3 Shilajit - 2","Parasite - 3 Shilajit - 2","Parasite - 3 Shilajit - 2",null,"FULL MOON Parasite - 3 Shilajit - 2","Parasite - 3 Shilajit - 2","Parasite - 3 Shilajit - 2","Parasite - 3 Shilajit - 2","Parasite - 3 Shilajit - 2","Parasite - 3 Shilajit - 2","Parasite - 3 Shilajit - 2"]
[null,"Enter the date (MM,DD,YY) of the first full moon                                                                      at the top of the calendar.",{"$nulls":7},"Enter the date (MM,DD,YY) of the first full moon                                                                      at the top of the calendar."]
[null,"Second full moon date may not correspond 'exactly'                                           to the actual date, but that's OK. Follow the schedule.",{"$nulls":7},"Second full moon date may not correspond 'exactly'                                           to the actual date, but that's OK. Follow the schedule."]
[null,"Take the number of remedy capsules                                                     each day as noted.",{"$nulls":7},"Take the number of remedy capsules                                                     each day as noted."]
[null,"DETOX W/BINDERS                                                                                                 (9 days before each Parasite Cleanse)",{"$nulls":7},"DETOX W/BINDERS                                                                                                 (9 days before each Parasite Cleanse)"]
[null,"Detoxifies Digestive System, Blood System,                                          Liver, and Kidneys.",{"$nulls":7},"Detoxifies Digestive System, Blood System,                                          Liver, and Kidneys."]
[null,"SHILAJIT BLEND                                                                                                   (each day during Detox and Parasite Cleanse)",{"$nulls":7},"SHILAJIT BLEND                                                                                                   (each day during Detox and Parasite Cleanse)"]
[null,"Binder, bioenhancer, supports liver and kidneys,                     neutralizes free radicals.",{"$nulls":7},"Binder, bioenhancer, supports liver and kidneys,                     neutralizes free radicals."]
[null,"PARASITE CLEANSE                                                                                         (over the course of two full moons)",{"$nulls":7},"PARASITE CLEANSE                                                                                         (over the course of two full moons)"]
[null,"Kills eggs, larvae, and adult parasites.",{"$nulls":7},"Kills eggs, larvae, and adult parasites."]
[]
[null,"Enter the date (MM,DD,YY) of the first full moon                                                                      at the top of the calendar.",{"$nulls":7},"Enter the date (MM,DD,YY) of the first full moon                                                                      at the top of the calendar."]
[null,"Second full moon date may not correspond 'exactly'                                           to the actual date, but that's OK. Follow the schedule.",{"$nulls":7},"Second full moon date may not correspond 'exactly'                                           to the actual date, but that's OK. Follow the schedule."]
[null,"Take the number of remedy capsules                                                     each day as noted.",{"$nulls":7},"Take the number of remedy capsules                                                     each day as noted."]
[null,"DETOX W/BINDERS                                                                                                 (9 days before each Parasite Cleanse)",{"$nulls":7},"DETOX W/BINDERS                                                                                                 (9 days before each Parasite Cleanse)"]
[null,"Detoxifies Digestive System, Blood System,                                          Liver, and Kidneys.",{"$nulls":7},"Detoxifies Digestive System, Blood System,                                          Liver, and Kidneys."]
[null,"SHILAJIT BLEND                                                                                                   (each day during Detox and Parasite Cleanse)",{"$nulls":7},"SHILAJIT BLEND                                                                                                   (each day during Detox and Parasite Cleanse)"]
[null,"Binder, bioenhancer, supports liver and kidneys,                     neutralizes free radicals.",{"$nulls":7},"Binder, bioenhancer, supports liver and kidneys,                     neutralizes free radicals."]
[null,"PARASITE CLEANSE                                                                                         (over the course of two full moons)",{"$nulls":7},"PARASITE CLEANSE                                                                                         (over the course of two full moons)"]
[null,"Kills eggs, larvae, and adult parasites.",{"$nulls":7},"Kills eggs, larvae, and adult parasites."]
[]
[null,"Enter the date (MM,DD,YY) of the first full moon                                                                      at the top of the calendar.",{"$nulls":7},"Enter the date (MM,DD,YY) of the first full moon                                                                      at the top of the calendar."]
[null,"Second full moon date may not correspond 'exactly'                                           to the actual date, but that's OK. Follow the schedule.",{"$nulls":7},"Second full moon date may not correspond 'exactly'                                           to the actual date, but that's OK. Follow the schedule."]
[null,"Take the number of remedy capsules                                                     each day as noted.",{"$nulls":7},"Take the number of remedy capsules                                                     each day as noted."]
[null,"DETOX W/BINDERS                                                                                                 (9 days before each Parasite Cleanse)",{"$nulls":7},"DETOX W/BINDERS                                                                                                 (9 days before each Parasite Cleanse)"]
[null,"Detoxifies Digestive System, Blood System,                                          Liver, and Kidneys.",{"$nulls":7},"Detoxifies Digestive System, Blood System,                                          Liver, and Kidneys."]
[null,"SHILAJIT BLEND                                                                                                   (each day during Detox and Parasite Cleanse)",{"$nulls":7},"SHILAJIT BLEND                                                                                                   (each day during Detox and Parasite Cleanse)"]
[null,"Binder, bioenhancer, supports liver and kidneys,                     neutralizes free radicals.",{"$nulls":7},"Binder, bioenhancer, supports liver and kidneys,                     neutralizes free radicals."]
[null,"PARASITE CLEANSE                                                                                         (over the course of two full moons)",{"$nulls":7},"PARASITE CLEANSE                                                                                         (over the course of two full moons)"]
[null,"Kills eggs, larvae, and adult parasites.",{"$nulls":7},"Kills eggs, larvae, and adult parasites."]

{"sheet":"Sheet1","index":1,"n_rows":59,"n_cols":16,"rows_kept":59,"merged":[[1,1,1,7],[1,9,1,15],[11,1,11,7],[11,9,11,15],[21,1,21,7],[21,9,21,15],[30,1,30,7],[30,9,30,15],[31,1,31,7],[31,9,31,15],[32,1,32,7],[32,9,32,15],[33,1,33,7],[33,9,33,15],[34,1,34,7],[34,9,34,15],[35,1,35,7],[35,9,35,15],[36,1,36,7],[36,9,36,15],[37,1,37,7],[37,9,37,15],[38,1,38,7],[38,9,38,15],[40,1,40,7],[40,9,40,15],[41,1,41,7],[41,9,41,15],[42,1,42,7],[42,9,42,15],[43,1,43,7],[43,9,43,15],[44,1,44,7],[44,9,44,15],[45,1,45,7],[45,9,45,15],[46,1,46,7],[46,9,46,15],[47,1,47,7],[47,9,47,15],[48,1,48,7],[48,9,48,15],[50,1,50,7],[50,9,50,15],[51,1,51,7],[51,9,51,15],[52,1,52,7],[52,9,52,15],[53,1,53,7],[53,9,53,15],[54,1,54,7],[54,9,54,15],[55,1,55,7],[55,9,55,15],[56,1,56,7],[56,9,56,15],[57,1,57,7],[57,9,57,15],[58,1,58,7],[58,9,58,15]]}
[]
[null,"7 WEEK ULTIMATE BODY CLEANSE",{"$nulls":7},"7 WEEK ULTIMATE BODY CLEANSE"]
[]
[null,"Detox - 5 Shilajit - 2","Detox - 5 Shilajit - 2","Detox - 5 Shilajit - 2","Detox - 5 Shilajit - 2","Detox - 5 Shilajit - 2","Detox - 5 Shilajit - 2","Detox - 5 Shilajit - 2",null,"Detox - 5 Shilajit - 2","Detox - 5 Shilajit - 2","Detox - 5 Shilajit - 2","Detox - 5 Shilajit - 2","Detox - 5 Shilajit - 2","Detox - 5 Shilajit - 2","Detox - 5 Shilajit - 2"]
[null,"Detox - 5 Shilajit - 2","Detox - 5 Shilajit - 2","Parasite - 3 Shilajit - 2","Parasite - 3 Shilajit - 2","Parasite - 3 Shilajit - 2","FULL MOON Parasite - 3 Shilajit - 2","Parasite - 3 Shilajit - 2",null,"Detox - 5 Shilajit - 2","Detox - 5 Shilajit - 2","Parasite - 3 Shilajit - 2","Parasite - 3 Shilajit - 2","Parasite - 3 Shilajit - 2","FULL MOON Parasite - 3 Shilajit - 2","Parasite - 3 Shilajit - 2"]
[null,"Parasite - 3 Shilajit - 2","Parasite - 3 Shilajit - 2","Parasite - 3 Shilajit - 2","Parasite - 3 Shilajit - 2","Parasite - 3 Shilajit - 2","Parasite - 2 Shilajit - 2","Parasite - 2 Shilajit - 1",null,"Parasite - 3 Shilajit - 2","Parasite - 3 Shilajit - 2","Parasite - 3 Shilajit - 2","Parasite - 3 Shilajit - 2","Parasite - 3 Shilajit - 2","Parasite - 2 Shilajit - 2","Parasite - 2 Shilajit - 1"]
[null,"Parasite - 2 Shilajit - 1","Parasite - 2 Shilajit - 1","Parasite - 2 Shilajit - 1","Parasite - 2 Shilajit - 2","Parasite - 2 Shilajit - 1","Parasite - 2 Shilajit - 1","Parasite - 2 Shilajit - 1",null,"Parasite - 2 Shilajit - 1","Parasite - 2 Shilajit - 1","Parasite - 2 Shilajit - 1","Parasite - 2 Shilajit - 2","Parasite - 2 Shilajit - 1","Parasite - 2 Shilajit - 1","Parasite - 2 Shilajit - 1"]
[null,"Parasite - 2 Shilajit - 1","Parasite - 2 Shilajit - 2","Detox - 5 Parasite - 2 Shilajit - 2","Detox - 5 Parasite - 2 Shilajit - 2","Detox - 5 Parasite - 2 Shilajit - 2","Detox - 5 Parasite - 2 Shilajit - 2","Detox - 5 Parasite - 2 Shilajit - 2",null,"Parasite - 2 Shilajit - 1","Parasite - 2 Shilajit - 2","Detox - 5 Parasite - 2 Shilajit - 2","Detox - 5 Parasite - 2 Shilajit - 2","Detox - 5 Parasite - 2 Shilajit - 2","Detox - 5 Parasite - 2 Shilajit - 2","Detox - 5 Parasite - 2 Shilajit - 2"]
[null,"Detox - 5 Parasite - 2 Shilajit - 2","Detox - 5 Parasite - 2 Shilajit - 2","Detox - 5 Parasite - 2 Shilajit - 2","Detox - 5 Parasite - 2 Shilajit - 2","Parasite - 3 Shilajit - 2","Parasite - 3 Shilajit - 2","Parasite - 3 Shilajit - 2",null,"Detox - 5 Parasite - 2 Shilajit - 2","Detox - 5 Parasite - 2 Shilajit - 2","Detox - 5 Parasite - 2 Shilajit - 2","Detox - 5 Parasite - 2 Shilajit - 2","Parasite - 3 Shilajit - 2","Parasite - 3 Shilajit - 2","Parasite - 3 Shilajit - 2"]
[null,"FULL MOON Parasite - 3 Shilajit - 2","Parasite - 3 Shilajit - 2","Parasite - 3 Shilajit - 2","Parasite - 3 Shilajit - 2","Parasite - 3 Shilajit - 2","Parasite - 3 Shilajit - 2","Parasite - 3 Shilajit - 2",null,"FULL MOON Parasite - 3 Shilajit - 2","Parasite - 3 Shilajit - 2","Parasite - 3 Shilajit - 2","Parasite - 3 Shilajit - 2","Parasite - 3 Shilajit - 2","Parasite - 3 Shilajit - 2","Parasite - 3 Shilajit - 2"]
[]
[null,"7 WEEK ULTIMATE BODY CLEANSE",{"$nulls":7},"7 WEEK ULTIMATE BODY CLEANSE"]
[]
[null,"Detox - 5 Shilajit - 2","Detox - 5 Shilajit - 2","Detox - 5 Shilajit - 2","Detox - 5 Shilajit - 2","Detox - 5 Shilajit - 2","Detox - 5 Shilajit - 2","Detox - 5 Shilajit - 2",null,"Detox - 5 Shilajit - 2","Detox - 5 Shilajit - 2","Detox - 5 Shilajit - 2","Detox - 5 Shilajit - 2","Detox - 5 Shilajit - 2","Detox - 5 Shilajit - 2","Detox - 5 Shilajit - 2"]
[null,"Detox - 5 Shilajit - 2","Detox - 5 Shilajit - 2","Parasite - 3 Shilajit - 2","Parasite - 3 Shilajit - 2","Parasite - 3 Shilajit - 2","FULL MOON Parasite - 3 Shilajit - 2","Parasite - 3 Shilajit - 2",null,"Detox - 5 Shilajit - 2","Detox - 5 Shilajit - 2","Parasite - 3 Shilajit - 2","Parasite - 3 Shilajit - 2","Parasite - 3 Shilajit - 2","FULL MOON Parasite - 3 Shilajit - 2","Parasite - 3 Shilajit - 2"]
[null,"Parasite - 3 Shilajit - 2","Parasite - 3 Shilajit - 2","Parasite - 3 Shilajit - 2","Parasite - 3 Shilajit - 2","Parasite - 3 Shilajit - 2","Parasite - 2 Shilajit - 2","Parasite - 2 Shilajit - 1",null,"Parasite - 3 Shilajit - 2","Parasite - 3 Shilajit - 2","Parasite - 3 Shilajit - 2","Parasite - 3 Shilajit - 2","Parasite - 3 Shilajit - 2","Parasite - 2 Shilajit - 2","Parasite - 2 Shilajit - 1"]
[null,"Parasite - 2 Shilajit - 1","Parasite - 2 Shilajit - 1","Parasite - 2 Shilajit - 1","Parasite - 2 Shilajit - 2","Parasite - 2 Shilajit - 1","Parasite - 2 Shilajit - 1","Parasite - 2 Shilajit - 1",null,"Parasite - 2 Shilajit - 1","Parasite - 2 Shilajit - 1","Parasite - 2 Shilajit - 1","Parasite - 2 Shilajit - 2","Parasite - 2 Shilajit - 1","Parasite - 2 Shilajit - 1","Parasite - 2 Shilajit - 1"]
[null,"Parasite - 2 Shilajit - 1","Parasite - 2 Shilajit - 2","Detox - 5 Parasite - 2 Shilajit - 2","Detox - 5 Parasite - 2 Shilajit - 2","Detox - 5 Parasite - 2 Shilajit - 2","Detox - 5 Parasite - 2 Shilajit - 2","Detox - 5 Parasite - 2 Shilajit - 2",null,"Parasite - 2 Shilajit - 1","Parasite - 2 Shilajit - 2","Detox - 5 Parasite - 2 Shilajit - 2","Detox - 5 Parasite - 2 Shilajit - 2","Detox - 5 Parasite - 2 Shilajit - 2","Detox - 5 Parasite - 2 Shilajit - 2","Detox - 5 Parasite - 2 Shilajit - 2"]
[null,"Detox - 5 Parasite - 2 Shilajit - 2","Detox - 5 Parasite - 2 Shilajit - 2","Detox - 5 Parasite - 2 Shilajit - 2","Detox - 5 Parasite - 2 Shilajit - 2","Parasite - 3 Shilajit - 2","Parasite - 3 Shilajit - 2","Parasite - 3 Shilajit - 2",null,"Detox - 5 Parasite - 2 Shilajit - 2","Detox - 5 Parasite - 2 Shilajit - 2","Detox - 5 Parasite - 2 Shilajit - 2","Detox - 5 Parasite - 2 Shilajit - 2","Parasite - 3 Shilajit - 2","Parasite - 3 Shilajit - 2","Parasite - 3 Shilajit - 2"]
[null,"FULL MOON Parasite - 3 Shilajit - 2","Parasite - 3 Shilajit - 2","Parasite - 3 Shilajit - 2","Parasite - 3 Shilajit - 2","Parasite - 3 Shilajit - 2","Parasite - 3 Shilajit - 2","Parasite - 3 Shilajit - 2",null,"FULL MOON Parasite - 3 Shilajit - 2","Parasite - 3 Shilajit - 2","Parasite - 3 Shilajit - 2","Parasite - 3 Shilajit - 2","Parasite - 3 Shilajit - 2","Parasite - 3 Shilajit - 2","Parasite - 3 Shilajit - 2"]
[]
[null,"7 WEEK ULTIMATE BODY CLEANSE",{"$nulls":7},"7 WEEK ULTIMATE BODY CLEANSE"]
[]
[null,"Detox - 5 Shilajit - 2","Detox - 5 Shilajit - 2","Detox - 5 Shilajit - 2","Detox - 5 Shilajit - 2","Detox - 5 Shilajit - 2","Detox - 5 Shilajit - 2","Detox - 5 Shilajit - 2",null,"Detox - 5 Shilajit - 2","Detox - 5 Shilajit - 2","Detox - 5 Shilajit - 2","Detox - 5 Shilajit - 2","Detox - 5 Shilajit - 2","Detox - 5 Shilajit - 2","Detox - 5 Shilajit - 2"]
[null,"Detox - 5 Shilajit - 2","Detox - 5 Shilajit - 2","Parasite - 3 Shilajit - 2","Parasite - 3 Shilajit - 2","Parasite - 3 Shilajit - 2","FULL MOON Parasite - 3 Shilajit - 2","Parasite - 3 Shilajit - 2",null,"Detox - 5 Shilajit - 2","Detox - 5 Shilajit - 2","Parasite - 3 Shilajit - 2","Parasite - 3 Shilajit - 2","Parasite - 3 Shilajit - 2","FULL MOON Parasite - 3 Shilajit - 2","Parasite - 3 Shilajit - 2"]
[null,"Parasite - 3 Shilajit - 2","Parasite - 3 Shilajit - 2","Parasite - 3 Shilajit - 2","Parasite - 3 Shilajit - 2","Parasite - 3 Shilajit - 2","Parasite - 2 Shilajit - 2","Parasite - 2 Shilajit - 1",null,"Parasite - 3 Shilajit - 2","Parasite - 3 Shilajit - 2","Parasite - 3 Shilajit - 2","Parasite - 3 Shilajit - 2","Parasite - 3 Shilajit - 2","Parasite - 2 Shilajit - 2","Parasite - 2 Shilajit - 1"]
[null,"Parasite - 2 Shilajit - 1","Parasite - 2 Shilajit - 1","Parasite - 2 Shilajit - 1","Parasite - 2 Shilajit - 2","Parasite - 2 Shilajit - 1","Parasite - 2 Shilajit - 1","Parasite - 2 Shilajit - 1",null,"Parasite - 2 Shilajit - 1","Parasite - 2 Shilajit - 1","Parasite - 2 Shilajit - 1","Parasite - 2 Shilajit - 2","Parasite - 2 Shilajit - 1","Parasite - 2 Shilajit - 1","Parasite - 2 Shilajit - 1"]
[null,"Parasite - 2 Shilajit - 1","Parasite - 2 Shilajit - 2","Detox - 5 Parasite - 2 Shilajit - 2","Detox - 5 Parasite - 2 Shilajit - 2","Detox - 5 Parasite - 2 Shilajit - 2","Detox - 5 Parasite - 2 Shilajit - 2","Detox - 5 Parasite - 2 Shilajit - 2",null,"Parasite - 2 Shilajit - 1","Parasite - 2 Shilajit - 2","Detox - 5 Parasite - 2 Shilajit - 2","Detox - 5 Parasite - 2 Shilajit - 2","Detox - 5 Parasite - 2 Shilajit - 2","Detox - 5 Parasite - 2 Shilajit - 2","Detox - 5 Parasite - 2 Shilajit - 2"]
[null,"Detox - 5 Parasite - 2 Shilajit - 2","Detox - 5 Parasite - 2 Shilajit - 2","Detox - 5 Parasite - 2 Shilajit - 2","Detox - 5 Parasite - 2 Shilajit - 2","Parasite - 3 Shilajit - 2","Parasite - 3 Shilajit - 2","Parasite - 3 Shilajit - 2",null,"Detox - 5 Parasite - 2 Shilajit - 2","Detox - 5 Parasite - 2 Shilajit - 2","Detox - 5 Parasite - 2 Shilajit - 2","Detox - 5 Parasite - 2 Shilajit - 2","Parasite - 3 Shilajit - 2","Parasite - 3 Shilajit - 2","Parasite - 3 Shilajit - 2"]
[null,"FULL MOON Parasite - 3 Shilajit - 2","Parasite - 3 Shilajit - 2","Parasite - 3 Shilajit - 2","Parasite - 3 Shilajit - 2","Parasite - 3 Shilajit - 2","Parasite - 3 Shilajit - 2","Parasite - 3 Shilajit - 2",null,"FULL MOON Parasite - 3 Shilajit - 2","Parasite - 3 Shilajit - 2","Parasite - 3 Shilajit - 2","Parasite - 3 Shilajit - 2","Parasite - 3 Shilajit - 2","Parasite - 3 Shilajit - 2","Parasite - 3 Shilajit - 2"]
[null,"Enter Mo, Tu, We, Th, Fr, Sa, Su                                                                      at the top of the calendar",{"$nulls":7},"Enter Mo, Tu, We, Th, Fr, Sa, Su                                                                      at the top of the calendar"]
[null,"making sure the day of the week                                              corresponds with the first full moon.",{"$nulls":7},"making sure the day of the week                                              corresponds with the first full moon."]
[null,"Take the number of remedy capsules                                                     each day as noted.",{"$nulls":7},"Take the number of remedy capsules                                                     each day as noted."]
[null,"DETOX W/BINDERS                                                                                                 (9 days before each Parasite Cleanse)",{"$nulls":7},"DETOX W/BINDERS                                                                                                 (9 days before each Parasite Cleanse)"]
[null,"Detoxifies Digestive System, Blood System,                                          Liver, and Kidneys.",{"$nulls":7},"Detoxifies Digestive System, Blood System,                                          Liver, and Kidneys."]
[null,"SHILAJIT BLEND                                                                                                   (each day during detox and parasite cleanse)",{"$nulls":7},"SHILAJIT BLEND                                                                                                   (each day during detox and parasite cleanse)"]
[null,"Binder, bioenhancer, supports liver and kidneys,                     neutralizes free radicals.",{"$nulls":7},"Binder, bioenhancer, supports liver and kidneys,                     neutralizes free radicals."]
[null,"PARASITE CLEANSE                                                                                         (over the course of two full moons)",{"$nulls":7},"PARASITE CLEANSE                                                                                         (over the course of two full moons)"]
[null,"Kills eggs, larvae, and adult parasites.",{"$nulls":7},"Kills eggs, larvae, and adult parasites."]
[]
[null,"Enter Mo, Tu, We, Th, Fr, Sa, Su                                                                      at the top of the calendar",{"$nulls":7},"Enter Mo, Tu, We, Th, Fr, Sa, Su                                                                      at the top of the calendar"]
[null,"making sure the day of the week                                              corresponds with the first full moon.",{"$nulls":7},"making sure the day of the week                                              corresponds with the first full moon."]
[null,"Take the number of remedy capsules                                                     each day as noted.",{"$nulls":7},"Take the number of remedy capsules                                                     each day as noted."]
[null,"DETOX W/BINDERS                                                                                                 (9 days before each Parasite Cleanse)",{"$nulls":7},"DETOX W/BINDERS                                                                                                 (9 days before each Parasite Cleanse)"]
[null,"Detoxifies Digestive System, Blood System,                                          Liver, and Kidneys.",{"$nulls":7},"Detoxifies Digestive System, Blood System,                                          Liver, and Kidneys."]
[null,"SHILAJIT BLEND                                                                                                   (each day during detox and parasite cleanse)",{"$nulls":7},"SHILAJIT BLEND                                                                                                   (each day during detox and parasite cleanse)"]
[null,"Binder, bioenhancer, supports liver and kidneys,                     neutralizes free radicals.",{"$nulls":7},"Binder, bioenhancer, supports liver and kidneys,                     neutralizes free radicals."]
[null,"PARASITE CLEANSE                                                                                         (over the course of two full moons)",{"$nulls":7},"PARASITE CLEANSE                                                                                         (over the course of two full moons)"]
[null,"Kills eggs, larvae, and adult parasites.",{"$nulls":7},"Kills eggs, larvae, and adult parasites."]
[]
[null,"Enter Mo, Tu, We, Th, Fr, Sa, Su                                                                      at the top of the calendar",{"$nulls":7},"Enter Mo, Tu, We, Th, Fr, Sa, Su                                                                      at the top of the calendar"]
[null,"making sure the day of the week                                              corresponds with the first full moon.",{"$nulls":7},"making sure the day of the week                                              corresponds with the first full moon."]
[null,"Take the number of remedy capsules                                                     each day as noted.",{"$nulls":7},"Take the number of remedy capsules                                                     each day as noted."]
[null,"DETOX W/BINDERS                                                                                                 (9 days before each Parasite Cleanse)",{"$nulls":7},"DETOX W/BINDERS                                                                                                 (9 days before each Parasite Cleanse)"]
[null,"Detoxifies Digestive System, Blood System,                                          Liver, and Kidneys.",{"$nulls":7},"Detoxifies Digestive System, Blood System,                                          Liver, and Kidneys."]
[null,"SHILAJIT BLEND                                                                                                   (each day during detox and parasite cleanse)",{"$nulls":7},"SHILAJIT BLEND                                                                                                   (each day during detox and parasite cleanse)"]
[null,"Binder, bioenhancer, supports liver and kidneys,                     neutralizes free radicals.",{"$nulls":7},"Binder, bioenhancer, supports liver and kidneys,                     neutralizes free radicals."]
[null,"PARASITE CLEANSE                                                                                         (over the course of two full moons)",{"$nulls":7},"PARASITE CLEANSE                                                                                         (over the course of two full moons)"]
[null,"Kills eggs, larvae, and adult parasites.",{"$nulls":7},"Kills eggs, larvae, and adult parasites."]

{"sheet":"Sheet2","index":2,"n_rows":31,"n_cols":8,"rows_kept":31,"merged":[[1,2,1,5],[4,1,4,7],[22,1,22,7],[23,1,23,7],[24,1,24,7],[25,1,25,7],[26,1,26,7],[27,1,27,7],[28,1,28,7],[29,1,29,7],[30,1,30,7]]}
[]
[null,null,"Enter Date (MM/DD/YY) of Full Moon:",{"$nulls":3},"2026-02-01"]
[{"$nulls":4},"Print double-sided.  Cut on dotted line"]
[]
[null,"7 WEEK ULTIMATE BODY CLEANSE"]
[null,{"$f":"B9","v":"2026-01-27"},"2026-01-28","2026-01-29","2026-01-30","2026-01-31",{"$f":"G9","v":"2026-02-01"},{"$f":"H9","v":"2026-02-02"}]
[null,{"$f":"C7-1","v":"2026-01-20"},{"$f":"D7-1","v":"2026-01-21"},{"$f":"E7-1","v":"2026-01-22"},{"$f":"F7-1","v":"2026-01-23"},{"$f":"G7-1","v":"2026-01-24"},{"$f":"H7-1","v":"2026-01-25"},{"$f":"B9-1","v":"2026-01-26"}]
[null,"Detox - 5 Shilajit - 2","Detox - 5 Shilajit - 2","Detox - 5 Shilajit - 2","Detox - 5 Shilajit - 2","Detox - 5 Shilajit - 2","Detox - 5 Shilajit - 2","Detox - 5 Shilajit - 2"]
[null,{"$f":"C9-1","v":"2026-01-27"},{"$f":"D9-1","v":"2026-01-28"},{"$f":"E9-1","v":"2026-01-29"},{"$f":"F9-1","v":"2026-01-30"},{"$f":"G9-1","v":"2026-01-31"},{"$f":"G2","v":"2026-02-01"},{"$f":"G9+1","v":"2026-02-02"}]
[null,"Detox - 5 Shilajit - 2","Detox - 5 Shilajit - 2","Parasite - 3 Shilajit - 2","Parasite - 3 Shilajit - 2","Parasite - 3 Shilajit - 2","FULL MOON Parasite - 3 Shilajit - 2","Parasite - 3 Shilajit - 2"]
[null,{"$f":"H9+1","v":"2026-02-03"},{"$f":"B11+1","v":"2026-02-04"},{"$f":"C11+1","v":"2026-02-05"},"2026-02-06","2026-02-07","2026-02-08","2026-02-09"]
[null,"Parasite - 3 Shilajit - 2","Parasite - 3 Shilajit - 2","Parasite - 3 Shilajit - 2","Parasite - 3 Shilajit - 2","Parasite - 3 Shilajit - 2","Parasite - 2 Shilajit - 2","Parasite - 2 Shilajit - 1"]
[null,{"$f":"H11+1","v":"2026-02-10"},{"$f":"B13+1","v":"2026-02-11"},"2026-02-12","2026-02-13","2026-02-14","2026-02-15","2026-02-16"]
[null,"Parasite - 2 Shilajit - 1","Parasite - 2 Shilajit - 1","Parasite - 2 Shilajit - 1","Parasite - 2 Shilajit - 2","Parasite - 2 Shilajit - 1","Parasite - 2 Shilajit - 1","Parasite - 2 Shilajit - 1"]
[null,{"$f":"H13+1","v":"2026-02-17"},{"$f":"B15+1","v":"2026-02-18"},"2026-02-19","2026-02-20","2026-02-21","2026-02-22","2026-02-23"]
[null,"Parasite - 2 Shilajit - 1","Parasite - 2 Shilajit - 2","Detox - 5 Parasite - 2 Shilajit - 2","Detox - 5 Parasite - 2 Shilajit - 2","Detox - 5 Parasite - 2 Shilajit - 2","Detox - 5 Parasite - 2 Shilajit - 2","Detox - 5 Parasite - 2 Shilajit - 2"]
[null,{"$f":"H15+1","v":"2026-02-24"},{"$f":"B17+1","v":"2026-02-25"},"2026-02-26","2026-02-27","2026-02-28","2026-03-01","2026-03-02"]
[null,"Detox - 5 Parasite - 2 Shilajit - 2","Detox - 5 Parasite - 2 Shilajit - 2","Detox - 5 Parasite - 2 Shilajit - 2","Detox - 5 Parasite - 2 Shilajit - 2","Parasite - 3 Shilajit - 2","Parasite - 3 Shilajit - 2","Parasite - 3 Shilajit - 2"]
[null,{"$f":"H17+1","v":"2026-03-03"},{"$f":"B19+1","v":"2026-03-04"},"2026-03-05","2026-03-06","2026-03-07","2026-03-08","2026-03-09"]
[null,"FULL MOON Parasite - 3 Shilajit - 2","Parasite - 3 Shilajit - 2","Parasite - 3 Shilajit - 2","Parasite - 3 Shilajit - 2","Parasite - 3 Shilajit - 2","Parasite - 3 Shilajit - 2","Parasite - 3 Shilajit - 2"]
[]
[]
[null,"(Second full moon date may not correspond 'exactly'                                                     to the actual date, but that's OK. Follow the schedule.)"]
[null,"Take the number of remedy                                                    capsules each day as noted."]
[null,"PARASITE CLEANSE                                                                                         (over the course of two full moons)"]
[null,"Kills eggs, larvae, and adult parasites."]
[null,"DETOX W/BINDERS                                                                                                 (The 9 days before each Parasite Cleanse)"]
[null,"Do not take 2hrs before or after eating."]
[null,"Detoxifies Digestive System, Blood                                                    System, Liver, and Kidneys."]
[null,"SHILAJIT BLEND                                                                                                   (each day during Detox and Parasite Cleanse)"]
[null,"Binder, bioenhancer, supports liver,                                         and kidneys. Neutralizes free radicals."]